Cogmind - Beta 10.2 @@@ ROGUE MODE // 2021.05.02 @ 08:28:11 Player: athros Result: Self-destructed Performance ------------- Evolutions (1) 500 Regions Visited (2) 400 Robots Destroyed (24) 120 Value Destroyed (353) 353 Prototype IDs (0) 0 Alien Tech Used (0) 0 Bonus (0) 0 TOTAL SCORE: 1373 Bonus ------- None Cogmind --------- Core Integrity 372/400 Matter 297/300 Energy 250/250 System Corruption 0% Temperature Cool (3) Movement Treading (180) Ox1 Location -9/Materials Parts ------- > --- POWER (1) -------- Ion Engine > --- PROPULSION (3) --- Light Treads Compact Wheel > --- UTILITY (3) ------ Large Storage Unit Large Storage Unit > --- WEAPON (2) ------- (None) > --- INVENTORY (16) --- Ion Engine Light Ion Engine Light Treads Flight Unit Flight Unit Flight Unit Flight Unit Weight Redist. System Signal Interpreter Targeting Computer Improved Targeting Computer Propulsion Shielding Peak State ------------ > --- POWER ------------ Ion Engine > --- PROPULSION ------- Light Treads Compact Wheel > --- UTILITY ---------- Small Storage Unit Large Storage Unit > --- WEAPON ----------- EM Pulse Gun Small Laser > --- INVENTORY -------- Ion Engine Light Treads EM Pulse Gun [Rating: 7] Favorites ----------- Power Ion Engine Engine Ion Engine Propulsion Light Treads Treads Light Treads Wheel Compact Wheel Utility Large Storage Unit Storage Large Storage Unit Weapon EM Pulse Gun Energy Gun EM Pulse Gun Slashing Weapon Mining Claw Build | -11 -10 -9 ------- Run | Scr Mat Mat Slots Evolved 2 | . . 2 Power . | . . . Propulsion 1 | . . 1 Utility 1 | . . 1 Weapon . | . . . Parts Attached 11 | 6 5 . Power 1 | 1 . . Engine 1 | 1 . . Core . | . . . Reactor . | . . . Propulsion 2 | 2 . . Treads 1 | 1 . . Leg . | . . . Wheel 1 | 1 . . Hover . | . . . Flight . | . . . Utility 3 | 1 2 . Device . | . . . Storage 3 | 1 2 . Processor . | . . . Hackware . | . . . Protection . | . . . Artifact . | . . . Weapon 5 | 2 3 . Energy Gun 4 | 2 2 . Energy Cannon . | . . . Ballistic Gun . | . . . Ballistic Cannon . | . . . Launcher . | . . . Special Weapon . | . . . Impact Weapon . | . . . Slashing Weapon 1 | . 1 . Piercing Weapon . | . . . Special Melee Weapon . | . . . Unidentified Prototypes . | . . . Parts Lost 2 | . 1 1 Power . | . . . Propulsion . | . . . Utility . | . . . Weapon 2 | . 1 1 Highest Loss Streak 1 | . 1 1 Average Slot Usage (%) 88 | . 93 66 Engine 13 | . 14 11 Treads 13 | . 14 11 Wheel 13 | . 14 11 Storage 26 | . 27 22 Energy Gun 18 | . 19 11 Slashing Weapon 1 | . 2 . Naked Turns . | . . . Heaviest Build 41 | 12 41 38 Greatest Support 20 | 16 20 20 Greatest Overweight (x) 2 | . 2 1 Average Overweight (x) 1 | . 1 1 Largest Inventory Capacity 16 | 6 16 16 Average Capacity 15 | 4 15 16 Most Carried 12 | 4 11 12 Average Carried 6 | 2 6 11 Final Capacity 16 | 6 16 16 Final Carried 12 | 3 11 12 Class Distribution -------------------- 100% | Mutant Dominant Class ---------------- Mutant | -10/Materials Mutant | -9/Materials Resources | -11 -10 -9 ----------- Run | Scr Mat Mat Matter Collected 315 | 222 93 . Remotely . | . . . Salvage Created 831 | . 813 18 Parts 43 | . 41 2 Haulers Intercepted 1 | . 1 . Recyclers Shooed 1 | . 1 . Parts Field Recycled . | . . . Retrieved Matter . | . . . Parts Self-Destructed . | . . . Prevented . | . . . Kills | -11 -10 -9 ------- Run | Scr Mat Mat Combat Hostiles Destroyed 13 | . 12 1 Guns 9 | . 8 1 AOE 3 | . 3 . Classes Destroyed 7 | . 7 . Worker 2 | . 2 . Builder 3 | . 3 . Hauler 1 | . 1 . Recycler 3 | . 3 . Watcher 2 | . 2 . Swarmer 7 | . 6 1 Grunt 6 | . 6 . Best Kill Streak 8 | . 8 1 Combat Bots Only 5 | . 5 1 Max Kills in Single Turn 2 | . 2 1 Gunslinging 1 | . 1 . Exploded 1 | . 1 . Melee . | . . . Uniques/NPCs Destroyed . | . . . Combat | -11 -10 -9 -------- Run | Scr Mat Mat Damage Taken 382 | . 308 74 Core 83 | . 55 28 Absorbed by Shields . | . . . Core Remaining (%) 89 | 100 78 . Volleys Fired 57 | . 54 3 Largest 2 | . 2 1 Hottest 80 | . 80 40 Shots Fired 73 | . 70 3 Gun 73 | . 70 3 Cannon . | . . . Launcher . | . . . Special . | . . . Kinetic . | . . . Thermal 11 | . 8 3 Explosive . | . . . Electromagnetic 62 | . 62 . Robot Hit Streak 6 | . 6 2 Robot Miss Streak 3 | . 3 2 Penetration Max . | . . . Secondary Targets 1 | . 1 . Max Gunslinging Chain 1 | . 1 . Shots Hit Robots 46 | . 44 2 Core Hits 31 | . 30 1 Critical Hits . | . . . Critical Kills . | . . . Critical Parts Destroyed . | . . . Melee Attacks 1 | . 1 . Impact . | . . . Slashing 1 | . 1 . Piercing . | . . . Sneak Attacks 1 | . 1 . Combat Hostiles . | . . . Follow-up Attacks . | . . . Damage Inflicted 1065 | . 1044 21 Guns 658 | . 637 21 Cannons . | . . . Explosions 315 | . 315 . Melee 75 | . 75 . Ramming 17 | . 17 . Kinetic . | . . . Thermal 392 | . 371 21 Explosive . | . . . Electromagnetic 581 | . 581 . Impact . | . . . Slashing 75 | . 75 . Piercing . | . . . Highest Corruption 3 | . 3 . Average Corruption 2 | . 2 . Corruption Purged . | . . . Effects 8 | . 8 . Message Errors 4 | . 4 . Matter Fused 2 | . 2 . Heat Flow Errors 2 | . 2 . Overload Shots . | . . . Overflow Damage . | . . . Projectiles . | . . . Explosions . | . . . Melee . | . . . Knockbacks 1 | . 1 . Impact 1 | . 1 . Kinetic . | . . . Secondary . | . . . Self-Inflicted Damage 6 | . 6 . Shots . | . . . Rammed 5 | . 5 . Targets Rammed 5 | . 5 . Kicked . | . . . Crushed . | . . . Highest Temperature 162 | . 162 6 Average Temperature 53 | . 53 4 Received Heat Transfer 156 | . 138 18 Siege Activations . | . . . Robots Corrupted 1 | . 1 . Combat Hostiles 1 | . 1 . Parts Fried 2 | . 2 . Impact Corruptions . | . . . Robots Melted . | . . . Combat Hostiles . | . . . Parts Melted 1 | . 1 . Heat Transferred 575 | . 525 50 Parts Sabotaged . | . . . Parts Stolen . | . . . Parts Stripped . | . . . Power Chain Reactions 5 | . 5 . Missiles Intercepted . | . . . Alert | -11 -10 -9 ------- Run | Scr Mat Mat Peak Influence 227 | . 227 125 Initial 75 | . . 75 Average 97 | . 107 82 Maximum Alert Level 1 | . 1 . Low Security (%) 88 | 100 84 100 Level 1 11 | . 15 . Level 2 . | . . . Level 3 . | . . . Level 4 . | . . . Level 5 . | . . . High Security . | . . . Max Security . | . . . Squads Dispatched 2 | . 2 . Investigation 1 | . 1 . Extermination . | . . . Reinforcement 1 | . 1 . Assault . | . . . Garrison . | . . . Intercept . | . . . Construction Impeded . | . . . Haulers Reinforced . | . . . Stealth | -11 -10 -9 --------- Run | Scr Mat Mat Distress Signals 1 | . 1 . Communications Jammed . | . . . Distress Signals . | . . . Times Spotted 19 | . 15 4 Peak Tracking Total 6 | . 6 5 Tactical Retreats . | . . . Traps | -11 -10 -9 ------- Run | Scr Mat Mat Traps Triggered 3 | . 3 . Indirectly . | . . . Trap Hack Attempts . | . . . Triggered . | . . . Disarmed . | . . . Reprogrammed . | . . . Reused . | . . . Traps Extracted . | . . . Installed . | . . . Triggered . | . . . Machines | -11 -10 -9 ---------- Run | Scr Mat Mat Machines Disabled 1 | . 1 . Max in Single Turn 1 | . 1 . Machines Sabotaged . | . . . Garrisons Compromised . | . . . Overloaded Fab Kills . | . . . Fab Network Shutdowns . | . . . Hacking | -11 -10 -9 --------- Run | Scr Mat Mat Machines Accessed 2 | . 2 . Terminals 2 | . 2 . Fabricators . | . . . Repair Stations . | . . . Recycling Units . | . . . Scanalyzers . | . . . Garrison Access . | . . . Total Hacks 4 | . 4 . Successful 3 | . 3 . Failed 1 | . 1 . Catastrophic . | . . . Database Lockouts . | . . . Manual 4 | . 4 . Terminals 4 | . 4 . Fabricators . | . . . Repair Stations . | . . . Recycling Units . | . . . Scanalyzers . | . . . Garrison Access . | . . . Terminal Hacks . | . . . Fabricator Hacks . | . . . Repair Station Hacks . | . . . Recycling Unit Hacks . | . . . Scanalyzer . | . . . Garrison Access Hacks . | . . . Unauthorized Hacks 3 | . 3 . Terminals 3 | . 3 . Track 2 | . 2 . Botnet 1 | . 1 . Fabricators . | . . . Repair Stations . | . . . Recycling Units . | . . . Scanalyzers . | . . . Garrison Access . | . . . Data Cores Recovered . | . . . Used . | . . . Hacking Detections 1 | . 1 . Full Trace Events . | . . . Feedback Events . | . . . Feedback Blocked . | . . . Robot Schematics Acquired . | . . . Robots Built . | . . . Matter . | . . . Time . | . . . Total Robot Build Rating . | . . . Part Schematics Acquired . | . . . Parts Built . | . . . Matter . | . . . Time . | . . . Total Part Build Rating . | . . . Parts Repaired . | . . . Time . | . . . Parts Recycled . | . . . Recycled Matter . | . . . Retrieved Matter . | . . . Retrieved Components . | . . . Parts Scanalyzed . | . . . Part Schematics Acquired . | . . . Parts Damaged . | . . . Bothacking | -11 -10 -9 ------------ Run | Scr Mat Mat Used RIF Installer . | . . . Robots Hacked . | . . . Non-combat . | . . . Combat . | . . . Robot Hacks Applied . | . . . Relay Couplers Released . | . . . Robots Rewired . | . . . Allies Hacked . | . . . Hacks Repelled . | . . . Allies | -11 -10 -9 -------- Run | Scr Mat Mat Total Allies . | . . . Largest Group . | . . . Highest-Rated Group . | . . . Highest-Rated Ally . | . . . Total Orders . | . . . Ally Attacks . | . . . Total Damage . | . . . Kills . | . . . Allies Corrupted . | . . . Allies Melted . | . . . Intel | -11 -10 -9 ------- Run | Scr Mat Mat Robot Analysis Total . | . . . Derelict Logs Recovered . | . . . Drone Launches . | . . . Drone Recoveries . | . . . Exploration | -11 -10 -9 ------------- Run | Scr Mat Mat Turns Passed 948 | 46 736 166 Spaces Moved 603 | 36 479 88 Core 8 | 8 . . Treads 106 | . 18 88 Legs . | . . . Wheels 489 | 28 461 . Hover . | . . . Flight . | . . . Fastest Speed 50 | 50 100 180 Average Speed 128 | 88 121 180 Slowest Speed 180 | 100 180 180 Overloaded Moves . | . . . Propulsion Burnouts . | . . . Robots Hopped . | . . . Cave-ins Triggered . | . . . Exploration Rate (%) 27 | 4 65 13 Regions Visited 2 Branch Regions . Pre-discovered Areas . | . . . Known Exits Taken . | . . . Unknown Exits Taken 2 | 1 1 . Scrap Searched . | . . . Spaces Dug . | . . . Terrain Destroyed 9 | . 9 . Melee . | . . . Projectile . | . . . AOE 9 | . 9 . Terrain Rammed . | . . . Walls Destroyed . | . . . Machines Disabled . | . . . Actions | -11 -10 -9 --------- Run | Scr Mat Mat Total 704 | 50 562 92 Wait . | . . . Move 601 | 35 478 88 Hop . | . . . Pick Up 22 | 9 12 1 Fast Attach . | . . . Attach 11 | 6 5 . Detach 4 | . 4 . Swap . | . . . Drop 3 | . 3 . Fire 57 | . 54 3 Melee 1 | . 1 . Ram 4 | . 4 . Kick . | . . . Crush 1 | . 1 . Escape Stasis . | . . . Rewire . | . . . Trap . | . . . Miscellaneous . | . . . Route ------- -11/Scrapyard -10/Materials (discovered 3 exits: [*Mat x2] / [*Min]) -9/Materials History --------- Turn | Location | Event 15 | -11/Scrapyard | Discovered new exit (range 16) 47 | -11/Scrapyard | Entered Materials 87 | -10/Materials | Discovered new exit (range 12) 178 | -10/Materials | Discovered new exit (range 10) 306 | -10/Materials | Build established: Mutant 674 | -10/Materials | Discovered new exit (range 5) 783 | -10/Materials | Entered another Materials area 783 | -9/Materials | Evolved 2 slots: Propulsion x1, Utility x1 949 | -9/Materials | Self-destructed Last Messages --------------- 00737_ ,QBO7O3/AYEB#JGIDTF|CC3Y> PARAMETERS=PROPULSION_1,UTILITY_1 LOCATION=UNKNOWN GOAL=ESCAPE 00896_ K-01 Serf collects debris. 00911_ Acquired Imp. Targeting Computer. 00913_ K-01 Serf collects debris. 00945_ S-10 Pest destroyed. 00948_ Sml. Laser destroyed. Map ----- +----------------------------------------------------+ | ?????????????????????????????????????????????????? | | ?????????????????????????????????????????????????? | | ?????????????????????????????????????????????????? | | ?????????????????????????????????????????????????? | | ?????????????????????????????????????????????????? | | ?????????????????????????????????????????????????? | | ?????????????????????????????????????????????????? | | ?????????????????????????????????????????????????? | | ?????????????????????????????????????????????????? | | ?????????????????????????????????????????????????? | | ?????????????????????????????????????????????????? | | ?????????????????????????????????????????????????? | | ?????????????????????????????????????????????????? | | ?????????????????????????????????????????????????? | | ?????????????????????????????????????????????????? | | ???????????????????#?????????????????????????????? | | ?????????????? ##### ????????????????????????????? | | ??????????????? ????????????????????????????? | | ???????????????? ??????????????????? ??????? | | ???????????????? ??????????????????? ??????? | | ???????????????? """u ?##########??????? ??????? | | ?????????? """ ?# #??????? #??????? | | ?????????# """ # #??????? #??????? | | ?????????# u#*""" #??????? #??????? | | ?????????# %s=""" #??????? #??????? | | ?????????# #@""" ######## ###????? | | ????????????####+## # """ ## #????? | | ??????????????????## ?#Y""" ## #????? | | ???????????????????# ?# ## #????? | | ???????????????????# ??# r ## !! #????? | | ???????????????????# ??##+####+### ! #????? | | ???????????????????# ?????????# ##????? | | ???????????????????# ?????????# #?????? | | ???????????????????#??????????# #?????? | | ????????????????????????? +?????? | | ??????????????????????? ####### #?????? | | ????????????????????? #?????# #?????? | | ??????????????????????###+#####+##?????# #?????? | | ?????????????????????????????? ???????# #?????? | | ????????????????????????????? ???????# #?????? | | ???????????????????????????? ???????# #?????? | | ???????????????????????????# ???????# #?????? | | ???????????????????????????? ""???????# #?????? | | ???????????????????????????# """???????# #??#### | | ???????????????????????????# "?????????# #### | | ???????????????????????????????????????# | | ???????????????????????????????????????# | | ???????????????????????????????????????# | | ???????????????????????????????????????######## | | ????????????????????????????????????????????#####+ | +----------------------------------------------------+ Best States ------------- Heat Dissipation 28 Energy Generation 10 Energy Capacity 250 Matter Stores 300 Matter Capacity 300 Sight Range 16 Terrain Scan Density 10 Evasion (%) 50 Recoil Reduction 1 Item Schematics ----------------- None Robot Schematics ------------------ None Fabricated ------------ Nothing Alien Tech Used ----------------- None Achievements -------------- None Challenges ------------ None Game ------ Seed MasterMomentumSource Manual? 0 Play Time 00:09:29 Cumulative 3.5 hours Start 2021.05.02 @ 08:19:20 End 2021.05.02 @ 08:28:11 Sessions 1 Manual Loads 0 Difficulty Rogue Special Mode None Game No. 6 Rogue 6 Adventurer 0 Explorer 0 Win Type - Total 0 Types 0/0/0/0/0/0/0/0/0 Lore% 15 Gallery% 9 Achievement% 11 Wizard Run 0 Options --------- ASCII 0 Keyboard 1 Movement Numpad Keybinds 0 Fullscreen 1 Font 18/SmallcapsGlow Map View 76x50 Tactical HUD 1 Map Filters NONE Filters NONE Steam 0 RUN: 6ab92b03-04d6-46c7-a1a7-4325a425a9f5